[Event "*** Titled Tuesday Blitz"]
[Site "Chess.com"]
[Date "2021.04.06"]
[Round "1"]
[White "FMalexhdez"]
[Black "PLAYER_2006_M"]
[Result "0-1"]
[WhiteElo "2184"]
[BlackElo "2526"]
[TimeControl "180+1"]
[EndTime "10:06:38 PDT"]
[Termination "PLAYER_2006_M won on time"]

1. e4 {[%clk 0:02:52.8]} 1... e6 {[%clk 0:02:58.7]} 2. d4 {[%clk 0:02:51.4]}
2... d5 {[%clk 0:02:59.6]} 3. Nd2 {[%clk 0:02:50.4]} 3... c5 {[%clk 0:02:58.9]}
4. Ngf3 {[%clk 0:02:48.5]} 4... cxd4 {[%clk 0:02:58.7]} 5. exd5 {[%clk 0:02:46]}
5... Qxd5 {[%clk 0:02:57.4]} 6. Bc4 {[%clk 0:02:45.1]} 6... Qd7 {[%clk
0:02:57.2]} 7. O-O {[%clk 0:02:44.5]} 7... Nc6 {[%clk 0:02:56.6]} 8. Nb3 {[%clk
0:02:34.2]} 8... Nf6 {[%clk 0:02:56]} 9. Nbxd4 {[%clk 0:02:32.1]} 9... Nxd4
{[%clk 0:02:56.9]} 10. Nxd4 {[%clk 0:02:27]} 10... a6 {[%clk 0:02:56.2]} 11. c3
{[%clk 0:02:19.5]} 11... b5 {[%clk 0:02:55.7]} 12. Bb3 {[%clk 0:01:57]} 12...
Bb7 {[%clk 0:02:54.9]} 13. Re1 {[%clk 0:01:53.3]} 13... Be7 {[%clk 0:02:48.1]}
14. a4 {[%clk 0:01:53.7]} 14... O-O {[%clk 0:02:45.5]} 15. axb5 {[%clk
0:01:52.8]} 15... axb5 {[%clk 0:02:45.5]} 16. Bg5 {[%clk 0:01:50.2]} 16... Rxa1
{[%clk 0:02:42]} 17. Qxa1 {[%clk 0:01:49.9]} 17... Ra8 {[%clk 0:02:13.8]} 18.
Qd1 {[%clk 0:01:46.9]} 18... h6 {[%clk 0:02:03.9]} 19. Bh4 {[%clk 0:01:38.7]}
19... Rd8 {[%clk 0:01:56.7]} 20. Qe2 {[%clk 0:01:38]} 20... g5 {[%clk
0:00:48.9]} 21. Bg3 {[%clk 0:01:00.6]} 21... b4 {[%clk 0:00:47.4]} 22. Nxe6
{[%clk 0:00:40]} 22... Qc6 {[%clk 0:00:44.7]} 23. f4 {[%clk 0:00:39.8]} 23...
fxe6 {[%clk 0:00:41.9]} 24. Bxe6+ {[%clk 0:00:39.6]} 24... Kg7 {[%clk
0:00:37.6]} 25. fxg5 {[%clk 0:00:39.5]} 25... Bc5+ {[%clk 0:00:37.9]} 26. Kh1
{[%clk 0:00:34.2]} 26... hxg5 {[%clk 0:00:37.3]} 27. cxb4 {[%clk 0:00:22.9]}
27... Bxb4 {[%clk 0:00:36.8]} 28. Rf1 {[%clk 0:00:05.9]} 28... Rd2 {[%clk
0:00:36.2]} 0-1

[Event "*** Titled Tuesday Blitz"]
[Site "Chess.com"]
[Date "2021.04.06"]
[Round "1"]
[White "krasavetc"]
[Black "Artem_Sadovsky"]
[Result "0-1"]
[WhiteElo "2325"]
[BlackElo "2618"]
[TimeControl "180+1"]
[EndTime "10:06:39 PDT"]
[Termination "Artem_Sadovsky won by resignation"]

1. e4 {[%clk 0:03:00.9]} 1... g6 {[%clk 0:02:58.2]} 2. Nf3 {[%clk 0:03:00.9]}
2... Bg7 {[%clk 0:02:57.2]} 3. d4 {[%clk 0:03:01.2]} 3... c6 {[%clk 0:02:53.7]}
4. c4 {[%clk 0:02:53.5]} 4... d5 {[%clk 0:02:53.1]} 5. cxd5 {[%clk 0:02:42.3]}
5... cxd5 {[%clk 0:02:53.1]} 6. e5 {[%clk 0:02:43.2]} 6... Nc6 {[%clk
0:02:51.9]} 7. Nc3 {[%clk 0:02:42]} 7... Bg4 {[%clk 0:02:51.7]} 8. Be2 {[%clk
0:02:38.8]} 8... e6 {[%clk 0:02:51.8]} 9. O-O {[%clk 0:02:36.7]} 9... Nge7
{[%clk 0:02:51.6]} 10. Nb5 {[%clk 0:02:21.6]} 10... Nf5 {[%clk 0:02:47.8]} 11.
Bg5 {[%clk 0:01:52.9]} 11... Qb6 {[%clk 0:02:47.5]} 12. a4 {[%clk 0:01:32.7]}
12... O-O {[%clk 0:02:31.8]} 13. a5 {[%clk 0:01:07.2]} 13... Nxa5 {[%clk
0:02:20.3]} 14. Rxa5 {[%clk 0:00:45.2]} 14... Qxa5 {[%clk 0:02:18.4]} 15. Nd6
{[%clk 0:00:39.4]} 15... Nxd6 {[%clk 0:01:53]} 16. exd6 {[%clk 0:00:37.9]} 16...
Bxf3 {[%clk 0:01:50.8]} 17. Bxf3 {[%clk 0:00:36.5]} 17... Qb6 {[%clk 0:01:44.6]}
18. Be7 {[%clk 0:00:36.1]} 18... Rfe8 {[%clk 0:01:37]} 19. Qa4 {[%clk
0:00:36.3]} 19... Bxd4 {[%clk 0:01:23.8]} 20. h4 {[%clk 0:00:32.4]} 20... Bc5
{[%clk 0:01:13.9]} 21. Qf4 {[%clk 0:00:31.3]} 21... Rxe7 {[%clk 0:01:01.5]} 22.
dxe7 {[%clk 0:00:32.2]} 22... Bxe7 {[%clk 0:01:02.1]} 23. h5 {[%clk 0:00:33.1]}
23... Qxb2 {[%clk 0:00:59.3]} 24. Qc7 {[%clk 0:00:24.6]} 24... Bf8 {[%clk
0:00:49]} 25. g3 {[%clk 0:00:21.4]} 25... a5 {[%clk 0:00:46.5]} 26. Rc1 {[%clk
0:00:18.3]} 26... a4 {[%clk 0:00:43.7]} 27. Kg2 {[%clk 0:00:18]} 27... a3 {[%clk
0:00:43.4]} 28. Rc2 {[%clk 0:00:17.7]} 28... Qxc2 {[%clk 0:00:40.7]} 29. Qxc2
{[%clk 0:00:16.7]} 29... a2 {[%clk 0:00:41.2]} 30. hxg6 {[%clk 0:00:16.6]} 30...
hxg6 {[%clk 0:00:40.8]} 31. Bg4 {[%clk 0:00:17.3]} 31... a1=Q {[%clk 0:00:40]}
32. Bxe6 {[%clk 0:00:17.8]} 32... fxe6 {[%clk 0:00:39.6]} 33. Qxg6+ {[%clk
0:00:18.3]} 33... Qg7 {[%clk 0:00:40.1]} 34. Qxe6+ {[%clk 0:00:19.2]} 34... Qf7
{[%clk 0:00:40.7]} 35. Qg4+ {[%clk 0:00:19.5]} 35... Bg7 {[%clk 0:00:41.2]} 36.
Qb4 {[%clk 0:00:19.6]} 36... Rf8 {[%clk 0:00:38.1]} 0-1

[Event "*** Titled Tuesday Blitz"]
[Site "Chess.com"]
[Date "2021.04.06"]
[Round "1"]
[White "FoggyMorning"]
[Black "FeketeBarika"]
[Result "1-0"]
[WhiteElo "2594"]
[BlackElo "2284"]
[TimeControl "180+1"]
[EndTime "10:06:39 PDT"]
[Termination "FoggyMorning won by resignation"]

1. e4 {[%clk 0:02:56.7]} 1... e6 {[%clk 0:03:00]} 2. d4 {[%clk 0:02:56.6]} 2...
d5 {[%clk 0:03:00.9]} 3. Bd3 {[%clk 0:02:57.2]} 3... dxe4 {[%clk 0:02:59.5]} 4.
Bxe4 {[%clk 0:02:58.1]} 4... Nf6 {[%clk 0:02:59.5]} 5. Bf3 {[%clk 0:02:58.8]}
5... Nbd7 {[%clk 0:02:56.7]} 6. Ne2 {[%clk 0:02:59.2]} 6... c5 {[%clk
0:02:55.6]} 7. Be3 {[%clk 0:02:58.5]} 7... cxd4 {[%clk 0:02:55.5]} 8. Nxd4
{[%clk 0:02:59.4]} 8... Ne5 {[%clk 0:02:54.5]} 9. Nc3 {[%clk 0:03:00]} 9... Bb4
{[%clk 0:02:54]} 10. Nb5 {[%clk 0:02:56]} 10... Nxf3+ {[%clk 0:02:51.5]} 11.
Qxf3 {[%clk 0:02:48.4]} 11... Bxc3+ {[%clk 0:02:52.4]} 12. Nxc3 {[%clk
0:02:43.4]} 12... Qc7 {[%clk 0:02:51.8]} 13. O-O-O {[%clk 0:02:32.8]} 13... O-O
{[%clk 0:02:50.7]} 14. Bd4 {[%clk 0:02:23.1]} 14... e5 {[%clk 0:02:47.5]} 15.
Qg3 {[%clk 0:01:54.7]} 15... Re8 {[%clk 0:02:30.3]} 16. Rhe1 {[%clk 0:01:47.9]}
16... Nd7 {[%clk 0:01:57.8]} 17. Nd5 {[%clk 0:01:35.5]} 17... Qd6 {[%clk
0:01:41.3]} 18. Bc3 {[%clk 0:01:19.7]} 18... f6 {[%clk 0:01:30.1]} 19. f4 {[%clk
0:01:06]} 19... Rb8 {[%clk 0:00:43.7]} 20. fxe5 {[%clk 0:00:59.7]} 20... Nxe5
{[%clk 0:00:41.9]} 21. Nxf6+ {[%clk 0:00:46.5]} 21... Qxf6 {[%clk 0:00:40.3]}
22. Bxe5 {[%clk 0:00:47]} 22... Rxe5 {[%clk 0:00:30.9]} 23. Qxe5 {[%clk
0:00:34.2]} 23... Qxe5 {[%clk 0:00:09.8]} 24. Rd8+ {[%clk 0:00:33.5]} 24... Kf7
{[%clk 0:00:07]} 25. Rxe5 {[%clk 0:00:34]} 25... b6 {[%clk 0:00:05.8]} 26. Ree8
{[%clk 0:00:33.1]} 26... Rb7 {[%clk 0:00:03.7]} 27. Rxc8 {[%clk 0:00:31.8]} 1-0

[Event "*** Titled Tuesday Blitz"]
[Site "Chess.com"]
[Date "2021.04.06"]
[Round "1"]
[White "scandalgod"]
[Black "aljado"]
[Result "1-0"]
[WhiteElo "2508"]
[BlackElo "2113"]
[TimeControl "180+1"]
[EndTime "10:06:41 PDT"]
[Termination "scandalgod won by resignation"]

1. d4 {[%clk 0:02:52.9]} 1... Nf6 {[%clk 0:02:58.2]} 2. c4 {[%clk 0:02:52.9]}
2... g6 {[%clk 0:02:57.8]} 3. Nc3 {[%clk 0:02:52.4]} 3... d5 {[%clk 0:02:57.8]}
4. Bg5 {[%clk 0:02:51.8]} 4... Bg7 {[%clk 0:02:50.8]} 5. Nf3 {[%clk 0:02:50.6]}
5... Ne4 {[%clk 0:02:48.4]} 6. Bh4 {[%clk 0:02:50.2]} 6... Nxc3 {[%clk
0:02:45.9]} 7. bxc3 {[%clk 0:02:49.7]} 7... O-O {[%clk 0:02:45.9]} 8. e3 {[%clk
0:02:49.7]} 8... c5 {[%clk 0:02:44.3]} 9. Be2 {[%clk 0:02:47.4]} 9... dxc4
{[%clk 0:02:42.1]} 10. O-O {[%clk 0:02:41.6]} 10... Nc6 {[%clk 0:02:37.8]} 11.
Bxc4 {[%clk 0:02:40]} 11... Bg4 {[%clk 0:02:35.8]} 12. h3 {[%clk 0:02:39.2]}
12... Bxf3 {[%clk 0:02:31.5]} 13. Qxf3 {[%clk 0:02:39.3]} 13... Qa5 {[%clk
0:02:24.8]} 14. Rfc1 {[%clk 0:02:32.5]} 14... Rac8 {[%clk 0:02:11.8]} 15. Rab1
{[%clk 0:02:24.5]} 15... b6 {[%clk 0:01:59]} 16. Bd5 {[%clk 0:02:20.2]} 16...
Qa4 {[%clk 0:01:44.4]} 17. Bxc6 {[%clk 0:02:16.8]} 17... Rxc6 {[%clk 0:01:36.8]}
18. Bxe7 {[%clk 0:02:15.7]} 18... Re8 {[%clk 0:01:31.7]} 19. Bh4 {[%clk
0:02:13.7]} 19... cxd4 {[%clk 0:01:29.7]} 20. cxd4 {[%clk 0:02:07.4]} 20...
Rxc1+ {[%clk 0:01:28.9]} 21. Rxc1 {[%clk 0:02:06.8]} 21... Qxa2 {[%clk
0:01:28.7]} 22. Rc7 {[%clk 0:02:04.3]} 22... a5 {[%clk 0:01:26.1]} 23. g3 {[%clk
0:01:50]} 23... a4 {[%clk 0:01:24.5]} 24. d5 {[%clk 0:01:49.9]} 24... Rf8 {[%clk
0:00:56.1]} 25. Be7 {[%clk 0:01:45.5]} 25... Re8 {[%clk 0:00:53.7]} 26. d6
{[%clk 0:01:39.3]} 26... Qe6 {[%clk 0:00:49.3]} 27. d7 {[%clk 0:01:33.8]} 27...
Qxe7 {[%clk 0:00:48.3]} 28. dxe8=Q+ {[%clk 0:01:31]} 28... Qxe8 {[%clk
0:00:47.9]} 29. Ra7 {[%clk 0:01:30.8]} 29... Qe6 {[%clk 0:00:37.3]} 30. Rxa4
{[%clk 0:01:21.3]} 30... b5 {[%clk 0:00:35.6]} 31. Ra8+ {[%clk 0:01:17.7]} 31...
Bf8 {[%clk 0:00:34.1]} 32. Qb7 {[%clk 0:01:15.2]} 32... Qc4 {[%clk 0:00:29.1]}
33. Rc8 {[%clk 0:00:53.6]} 33... Qd3 {[%clk 0:00:25]} 34. Qb8 {[%clk 0:00:49.6]}
34... Qd1+ {[%clk 0:00:23.4]} 35. Kh2 {[%clk 0:00:49.4]} 35... Qf3 {[%clk
0:00:12.6]} 36. Rxf8+ {[%clk 0:00:49.3]} 36... Kg7 {[%clk 0:00:12.8]} 37. Rg8+
{[%clk 0:00:49.4]} 37... Kh6 {[%clk 0:00:12.4]} 38. Qf4+ {[%clk 0:00:49.6]} 1-0

[Event "*** Titled Tuesday Blitz"]
[Site "Chess.com"]
[Date "2021.04.06"]
[Round "1"]
[White "731291"]
[Black "sbouchet"]
[Result "1-0"]
[WhiteElo "2652"]
[BlackElo "2345"]
[TimeControl "180+1"]
[EndTime "10:06:42 PDT"]
[Termination "731291 won by resignation"]

1. e4 {[%clk 0:03:00.9]} 1... c5 {[%clk 0:02:58.7]} 2. Nc3 {[%clk 0:03:01.8]}
2... g6 {[%clk 0:02:58.7]} 3. Nf3 {[%clk 0:03:00.8]} 3... Bg7 {[%clk 0:02:58.4]}
4. h4 {[%clk 0:03:01.5]} 4... h5 {[%clk 0:02:57]} 5. Bc4 {[%clk 0:03:00]} 5...
Nc6 {[%clk 0:02:56.2]} 6. d3 {[%clk 0:02:59]} 6... Na5 {[%clk 0:02:42.2]} 7. Bg5
{[%clk 0:02:54.8]} 7... Nxc4 {[%clk 0:02:38.9]} 8. dxc4 {[%clk 0:02:55.7]} 8...
d6 {[%clk 0:02:38.9]} 9. e5 {[%clk 0:02:46]} 9... dxe5 {[%clk 0:01:10.4]} 10.
Qxd8+ {[%clk 0:02:44.6]} 10... Kxd8 {[%clk 0:01:11.3]} 11. O-O-O+ {[%clk
0:02:44.2]} 11... Kc7 {[%clk 0:01:11.2]} 12. Nd5+ {[%clk 0:02:13.5]} 12... Kc6
{[%clk 0:01:09.7]} 13. Nxe7+ {[%clk 0:01:54.2]} 13... Nxe7 {[%clk 0:01:08.6]}
14. Bxe7 {[%clk 0:01:55.1]} 14... Bg4 {[%clk 0:01:08.5]} 15. Rd6+ {[%clk
0:01:54.7]} 15... Kc7 {[%clk 0:01:08.1]} 16. Rd5 {[%clk 0:01:24.4]} 16... Bxf3
{[%clk 0:00:49.7]} 17. gxf3 {[%clk 0:01:18.5]} 17... Rhe8 {[%clk 0:00:28.1]} 18.
Bxc5 {[%clk 0:00:49.6]} 18... b6 {[%clk 0:00:25.4]} 19. Bd6+ {[%clk 0:00:43.4]}
19... Kc6 {[%clk 0:00:25.6]} 20. Rhd1 {[%clk 0:00:41.7]} 20... Re6 {[%clk
0:00:15.1]} 21. b4 {[%clk 0:00:29.9]} 21... Rae8 {[%clk 0:00:09.9]} 22. b5+
{[%clk 0:00:29.1]} 22... Kb7 {[%clk 0:00:10.4]} 23. Bb4 {[%clk 0:00:29.8]} 23...
e4 {[%clk 0:00:07.2]} 24. Rd7+ {[%clk 0:00:29.5]} 24... Kb8 {[%clk 0:00:07.1]}
25. Rxf7 {[%clk 0:00:27.2]} 25... Bh6+ {[%clk 0:00:06]} 26. f4 {[%clk
0:00:27.8]} 1-0

[Event "*** Titled Tuesday Blitz"]
[Site "Chess.com"]
[Date "2021.04.06"]
[Round "1"]
[White "BogdanDeac"]
[Black "Majesth"]
[Result "1-0"]
[WhiteElo "3052"]
[BlackElo "2475"]
[TimeControl "180+1"]
[EndTime "10:06:44 PDT"]
[Termination "BogdanDeac won on time"]

1. d4 {[%clk 0:02:58.1]} 1... e6 {[%clk 0:02:57.3]} 2. Nf3 {[%clk 0:02:57.7]}
2... Nf6 {[%clk 0:02:56.6]} 3. c4 {[%clk 0:02:57.4]} 3... Bb4+ {[%clk
0:02:56.5]} 4. Nc3 {[%clk 0:02:57.2]} 4... c5 {[%clk 0:02:52.2]} 5. e3 {[%clk
0:02:56.7]} 5... O-O {[%clk 0:02:50.3]} 6. Bd2 {[%clk 0:02:55.5]} 6... cxd4
{[%clk 0:02:48.8]} 7. exd4 {[%clk 0:02:53.2]} 7... d5 {[%clk 0:02:49]} 8. c5
{[%clk 0:02:30.4]} 8... Nc6 {[%clk 0:02:21]} 9. a3 {[%clk 0:02:24.7]} 9... Bxc3
{[%clk 0:02:19.4]} 10. Bxc3 {[%clk 0:02:25.4]} 10... Ne4 {[%clk 0:02:18.6]} 11.
Qc2 {[%clk 0:02:20.4]} 11... f5 {[%clk 0:02:10.4]} 12. b4 {[%clk 0:02:13.3]}
12... a6 {[%clk 0:02:03.9]} 13. Be2 {[%clk 0:02:05.9]} 13... Bd7 {[%clk
0:01:58]} 14. O-O {[%clk 0:02:05.3]} 14... Be8 {[%clk 0:01:54.8]} 15. a4 {[%clk
0:02:05.2]} 15... Bh5 {[%clk 0:01:41]} 16. b5 {[%clk 0:02:03.4]} 16... axb5
{[%clk 0:01:39.1]} 17. axb5 {[%clk 0:02:03]} 17... Ne7 {[%clk 0:01:11]} 18. Bb4
{[%clk 0:01:56.1]} 18... Qc7 {[%clk 0:00:55.1]} 19. Ne5 {[%clk 0:01:46.6]} 19...
Bxe2 {[%clk 0:00:51.3]} 20. Qxe2 {[%clk 0:01:47.5]} 20... Ng6 {[%clk 0:00:36.3]}
21. Nxg6 {[%clk 0:01:45.5]} 21... hxg6 {[%clk 0:00:36]} 22. f3 {[%clk
0:01:45.3]} 22... Nf6 {[%clk 0:00:25.9]} 23. Qxe6+ {[%clk 0:01:34.5]} 23... Kh7
{[%clk 0:00:25.8]} 24. Qd6 {[%clk 0:01:32.7]} 24... Qf7 {[%clk 0:00:17.6]} 25.
c6 {[%clk 0:01:22.4]} 25... bxc6 {[%clk 0:00:07.7]} 26. bxc6 {[%clk 0:01:18.8]}
26... Rac8 {[%clk 0:00:06]} 27. Rfe1 {[%clk 0:01:10.4]} 27... Rfe8 {[%clk
0:00:04.9]} 28. Bc5 {[%clk 0:01:00.3]} 28... Rcd8 {[%clk 0:00:03.7]} 29. Qf4
{[%clk 0:00:55.7]} 29... Rc8 {[%clk 0:00:03.2]} 30. Qd6 {[%clk 0:00:47]} 30...
Rcd8 {[%clk 0:00:01.5]} 31. Re7 {[%clk 0:00:44.5]} 1-0

[Event "*** Titled Tuesday Blitz"]
[Site "Chess.com"]
[Date "2021.04.06"]
[Round "1"]
[White "vugarrasulov"]
[Black "Vamostodorecto"]
[Result "1-0"]
[WhiteElo "2873"]
[BlackElo "2449"]
[TimeControl "180+1"]
[EndTime "10:06:44 PDT"]
[Termination "vugarrasulov won by resignation"]

1. e4 {[%clk 0:03:00.7]} 1... e5 {[%clk 0:02:52.9]} 2. Nf3 {[%clk 0:03:00.4]}
2... d5 {[%clk 0:02:53.3]} 3. Nxe5 {[%clk 0:02:58.9]} 3... Bd6 {[%clk
0:02:50.9]} 4. d4 {[%clk 0:02:56.8]} 4... dxe4 {[%clk 0:02:51.5]} 5. Nc4 {[%clk
0:02:57]} 5... Nf6 {[%clk 0:02:49.5]} 6. Nc3 {[%clk 0:02:57.2]} 6... O-O {[%clk
0:02:38]} 7. Be2 {[%clk 0:02:56.7]} 7... Nc6 {[%clk 0:02:35.3]} 8. Bg5 {[%clk
0:02:54.2]} 8... Re8 {[%clk 0:02:33.2]} 9. Qd2 {[%clk 0:02:48.8]} 9... h6 {[%clk
0:02:28.5]} 10. Bh4 {[%clk 0:02:46]} 10... Bf5 {[%clk 0:02:11.9]} 11. O-O-O
{[%clk 0:02:44]} 11... a6 {[%clk 0:02:04.7]} 12. Kb1 {[%clk 0:02:37.2]} 12... b5
{[%clk 0:02:03]} 13. Nxd6 {[%clk 0:02:37.7]} 13... Qxd6 {[%clk 0:02:03.9]} 14.
Bg3 {[%clk 0:02:37.5]} 14... Qd7 {[%clk 0:02:00.6]} 15. d5 {[%clk 0:02:33.7]}
15... Ne5 {[%clk 0:01:58.3]} 16. Qd4 {[%clk 0:02:34.1]} 16... Ng6 {[%clk
0:01:26.3]} 17. Rhe1 {[%clk 0:02:34.2]} 17... Rac8 {[%clk 0:01:19.2]} 18. Qc5
{[%clk 0:02:30.3]} 18... c6 {[%clk 0:01:04.7]} 19. dxc6 {[%clk 0:02:25.7]} 19...
Qxc6 {[%clk 0:01:05.6]} 20. Qxc6 {[%clk 0:02:26.1]} 20... Rxc6 {[%clk
0:01:05.9]} 21. Nd5 {[%clk 0:02:26.5]} 21... Nxd5 {[%clk 0:01:01.6]} 22. Rxd5
{[%clk 0:02:27.4]} 22... Be6 {[%clk 0:01:02]} 23. Rd6 {[%clk 0:02:27.3]} 23...
Rxd6 {[%clk 0:01:01.1]} 24. Bxd6 {[%clk 0:02:28.2]} 24... Rd8 {[%clk 0:01:01.2]}
25. Bg3 {[%clk 0:02:28.1]} 25... f5 {[%clk 0:00:59.3]} 26. Bh5 {[%clk
0:02:26.5]} 26... Bf7 {[%clk 0:00:57.1]} 27. Kc1 {[%clk 0:02:25.4]} 27... Rc8
{[%clk 0:00:36.9]} 28. a3 {[%clk 0:02:04.6]} 28... Rf8 {[%clk 0:00:33.4]} 29.
Bd6 {[%clk 0:02:00.4]} 29... Rd8 {[%clk 0:00:32.3]} 30. Rd1 {[%clk 0:02:00.9]}
30... Rd7 {[%clk 0:00:28.4]} 31. b3 {[%clk 0:01:55.1]} 31... Nh8 {[%clk
0:00:24.8]} 32. Be2 {[%clk 0:01:53.8]} 32... Be6 {[%clk 0:00:24.5]} 33. a4
{[%clk 0:01:45.9]} 33... Nf7 {[%clk 0:00:19]} 34. axb5 {[%clk 0:01:43.2]} 34...
Rxd6 {[%clk 0:00:15.7]} 35. Rxd6 {[%clk 0:01:42.3]} 35... Nxd6 {[%clk
0:00:16.6]} 36. bxa6 {[%clk 0:01:43.2]} 36... Bd5 {[%clk 0:00:16.3]} 37. c4
{[%clk 0:01:42.7]} 37... Bc6 {[%clk 0:00:14.6]} 38. b4 {[%clk 0:01:42.3]} 38...
Kf7 {[%clk 0:00:13.5]} 39. b5 {[%clk 0:01:42.9]} 39... Ba8 {[%clk 0:00:09.8]}
40. c5 {[%clk 0:01:43.3]} 40... Nxb5 {[%clk 0:00:06.6]} 41. Bxb5 {[%clk
0:01:42.7]} 41... Ke6 {[%clk 0:00:07.5]} 42. c6 {[%clk 0:01:38.6]} 42... Kd6
{[%clk 0:00:07.4]} 43. Kd2 {[%clk 0:01:32.1]} 43... Bxc6 {[%clk 0:00:06.4]} 44.
Bxc6 {[%clk 0:01:29.3]} 44... Kxc6 {[%clk 0:00:07.3]} 45. Ke3 {[%clk 0:01:30.2]}
45... g5 {[%clk 0:00:06.5]} 46. Kd4 {[%clk 0:01:29.7]} 46... Kb6 {[%clk
0:00:04.9]} 47. Ke5 {[%clk 0:01:30.2]} 47... Kxa6 {[%clk 0:00:04]} 48. Kxf5
{[%clk 0:01:30.3]} 48... Kb5 {[%clk 0:00:03.9]} 49. Kxe4 {[%clk 0:01:30.8]}
49... Kc5 {[%clk 0:00:04.8]} 50. Kf5 {[%clk 0:01:30.4]} 50... Kd6 {[%clk
0:00:05.7]} 51. Kg6 {[%clk 0:01:30.8]} 1-0

[Event "*** Titled Tuesday Blitz"]
[Site "Chess.com"]
[Date "2021.04.06"]
[Round "1"]
[White "Carolina-moon"]
[Black "Natalya_Buksa"]
[Result "0-1"]
[WhiteElo "2113"]
[BlackElo "2507"]
[TimeControl "180+1"]
[EndTime "10:06:45 PDT"]
[Termination "Natalya_Buksa won on time"]

1. e4 {[%clk 0:02:58]} 1... c5 {[%clk 0:02:58.5]} 2. Nc3 {[%clk 0:02:56.4]} 2...
Nc6 {[%clk 0:02:58.5]} 3. Bb5 {[%clk 0:02:56.1]} 3... Nd4 {[%clk 0:02:58.9]} 4.
Nf3 {[%clk 0:02:54.6]} 4... Nxb5 {[%clk 0:02:58.1]} 5. Nxb5 {[%clk 0:02:54]}
5... a6 {[%clk 0:02:58.6]} 6. Nc3 {[%clk 0:02:53.9]} 6... d6 {[%clk 0:02:59.5]}
7. d4 {[%clk 0:02:53.2]} 7... cxd4 {[%clk 0:02:59.2]} 8. Qxd4 {[%clk 0:02:52]}
8... Nf6 {[%clk 0:03:00.1]} 9. e5 {[%clk 0:02:50.3]} 9... dxe5 {[%clk
0:02:59.2]} 10. Qxd8+ {[%clk 0:02:49.7]} 10... Kxd8 {[%clk 0:02:58.9]} 11. Nxe5
{[%clk 0:02:50.3]} 11... Ke8 {[%clk 0:02:54]} 12. Be3 {[%clk 0:02:27.8]} 12...
Nd7 {[%clk 0:02:53.7]} 13. Nxd7 {[%clk 0:02:05.4]} 13... Bxd7 {[%clk 0:02:53.1]}
14. O-O-O {[%clk 0:02:06.3]} 14... e6 {[%clk 0:02:52.6]} 15. Ne4 {[%clk
0:02:01.3]} 15... Bc6 {[%clk 0:02:47.1]} 16. Nd6+ {[%clk 0:01:57.4]} 16... Bxd6
{[%clk 0:02:46.2]} 17. Rxd6 {[%clk 0:01:56.3]} 17... Bxg2 {[%clk 0:02:45.3]} 18.
Rg1 {[%clk 0:01:54.2]} 18... Bd5 {[%clk 0:02:45.2]} 19. Rxg7 {[%clk 0:01:51.2]}
19... Ke7 {[%clk 0:02:45.2]} 20. Rb6 {[%clk 0:01:50.8]} 20... Rac8 {[%clk
0:02:44]} 21. Bg5+ {[%clk 0:01:45.8]} 21... Ke8 {[%clk 0:02:33.9]} 22. Bf6
{[%clk 0:01:29.3]} 22... h5 {[%clk 0:02:33.2]} 23. f4 {[%clk 0:01:24.4]} 23...
Be4 {[%clk 0:02:30.8]} 24. c3 {[%clk 0:01:17.1]} 24... Rh6 {[%clk 0:02:30.1]}
25. Be5 {[%clk 0:01:12.2]} 25... Rg6 {[%clk 0:02:25.7]} 26. Rxg6 {[%clk
0:01:06.8]} 26... fxg6 {[%clk 0:02:20.7]} 27. Bf6 {[%clk 0:01:00.6]} 27... Kd7
{[%clk 0:02:19.5]} 28. Kd2 {[%clk 0:00:54.2]} 28... Rf8 {[%clk 0:02:16.9]} 29.
Bg5 {[%clk 0:00:51.7]} 29... Bc6 {[%clk 0:02:15.3]} 30. Ke3 {[%clk 0:00:50.6]}
30... e5 {[%clk 0:02:15.1]} 31. fxe5 {[%clk 0:00:48.2]} 31... Ke6 {[%clk
0:02:15.3]} 32. Bf6 {[%clk 0:00:46.2]} 32... g5 {[%clk 0:02:07]} 33. Rb4 {[%clk
0:00:44.3]} 33... g4 {[%clk 0:02:02.3]} 34. Rd4 {[%clk 0:00:43.6]} 34... Kf5
{[%clk 0:01:57.7]} 35. c4 {[%clk 0:00:36.3]} 35... Rg8 {[%clk 0:01:56.1]} 36.
Rf4+ {[%clk 0:00:34.1]} 36... Ke6 {[%clk 0:01:55.6]} 37. Rd4 {[%clk 0:00:33.9]}
37... Rg6 {[%clk 0:01:50.8]} 38. Kf4 {[%clk 0:00:31.9]} 38... g3 {[%clk
0:01:43.4]} 39. hxg3 {[%clk 0:00:28.2]} 39... Rg4+ {[%clk 0:01:43.8]} 40. Ke3
{[%clk 0:00:26.6]} 40... Rxg3+ {[%clk 0:01:44.3]} 41. Kd2 {[%clk 0:00:25.2]}
41... Rg2+ {[%clk 0:01:33.4]} 42. Kc3 {[%clk 0:00:25]} 42... Rg4 {[%clk
0:01:33.8]} 43. Rxg4 {[%clk 0:00:18.6]} 43... hxg4 {[%clk 0:01:33.5]} 44. Kd4
{[%clk 0:00:12.6]} 44... g3 {[%clk 0:01:33.1]} 45. Bh4 {[%clk 0:00:12.8]} 45...
g2 {[%clk 0:01:32.8]} 46. Bf2 {[%clk 0:00:13.4]} 46... Kf5 {[%clk 0:01:32.6]}
47. b4 {[%clk 0:00:08.8]} 47... b5 {[%clk 0:01:27.2]} 48. cxb5 {[%clk
0:00:02.9]} 48... Bxb5 {[%clk 0:01:26.1]} 49. Kc5 {[%clk 0:00:02.7]} 49... Kxe5
{[%clk 0:01:24.9]} 50. Kb6 {[%clk 0:00:02.4]} 50... Kd5 {[%clk 0:01:23.7]} 51.
a4 {[%clk 0:00:01.2]} 51... Bd3 {[%clk 0:01:23.8]} 0-1

[Event "*** Titled Tuesday Blitz"]
[Site "Chess.com"]
[Date "2021.04.06"]
[Round "1"]
[White "RamyresCoelho"]
[Black "Dare-Dare"]
[Result "1-0"]
[WhiteElo "2175"]
[BlackElo "2506"]
[TimeControl "180+1"]
[EndTime "10:06:47 PDT"]
[Termination "RamyresCoelho won on time"]

1. e4 {[%clk 0:03:00.2]} 1... e6 {[%clk 0:02:59.8]} 2. d4 {[%clk 0:02:59.6]}
2... d5 {[%clk 0:03:00.7]} 3. Nc3 {[%clk 0:03:00.1]} 3... Bb4 {[%clk 0:03:00.4]}
4. e5 {[%clk 0:03:00.2]} 4... c5 {[%clk 0:03:00.4]} 5. a3 {[%clk 0:02:59.6]}
5... Bxc3+ {[%clk 0:03:00.8]} 6. bxc3 {[%clk 0:03:00.5]} 6... Qa5 {[%clk
0:03:01.4]} 7. Bd2 {[%clk 0:02:59]} 7... Ne7 {[%clk 0:03:02.3]} 8. Qg4 {[%clk
0:02:58.5]} 8... O-O {[%clk 0:03:02.2]} 9. Bd3 {[%clk 0:02:54.9]} 9... Nbc6
{[%clk 0:03:01.9]} 10. Nf3 {[%clk 0:02:50.4]} 10... f5 {[%clk 0:03:01.7]} 11.
exf6 {[%clk 0:02:50]} 11... Rxf6 {[%clk 0:03:01.7]} 12. Qh5 {[%clk 0:01:52.9]}
12... Nf5 {[%clk 0:03:00.4]} 13. Ng5 {[%clk 0:01:38.1]} 13... h6 {[%clk
0:02:56]} 14. g4 {[%clk 0:01:19.8]} 14... Nd6 {[%clk 0:02:43.7]} 15. O-O {[%clk
0:01:03.3]} 15... Bd7 {[%clk 0:02:34.2]} 16. Nh7 {[%clk 0:00:52.4]} 16... Rf7
{[%clk 0:01:58.2]} 17. Bg6 {[%clk 0:00:51.7]} 17... Re7 {[%clk 0:01:54.4]} 18.
Bxh6 {[%clk 0:00:47.5]} 18... Qxc3 {[%clk 0:01:17.7]} 19. Bg5 {[%clk 0:00:38.9]}
19... Qxd4 {[%clk 0:00:26]} 20. Nf8 {[%clk 0:00:32.3]} 20... Nf7 {[%clk
0:00:04.1]} 21. Bxf7+ {[%clk 0:00:17.5]} 21... Kxf8 {[%clk 0:00:04.6]} 22. Bg6
{[%clk 0:00:13.1]} 1-0